bitfinex/quotes_ETHUSD_20240822
["timestamp","ask_amount","ask_price","bid_price","bid_amount"]
[1724364347954,2.4899,2629.4,2629.0,4.7165103]
[1724364348271,2.4899,2629.4,2629.1,3.80357]
[1724364351556,0.06354852,2629.3,2629.1,3.80357]
[1724364352009,2.4899,2629.4,2629.1,3.80357]
[1724364352537,0.06354852,2629.3,2629.2,3.80343]
[1724364352774,0.06354852,2629.3,2629.2,4.56413]
[1724364352977,2.4441,2629.6,2629.2,4.56413]
[1724364353177,0.0635762,2629.3,2629.2,3.80343]
[1724364353675,2.4441,2629.6,2629.1,3.80357]
[1724364353676,2.2745,2629.5,2629.1,3.80356]
[1724364353994,2.2745,2629.3,2628.9,3.80377]
[1724364354662,2.50350387,2629.2,2628.8,3.804]
[1724364354993,2.50350387,2629.2,2628.9,3.80384]
[1724364355196,2.50350387,2629.2,2629.0,3.80365]
[1724364355355,0.06360387,2629.2,2629.1,3.80358]
[1724364355686,2.4853,2629.4,2629.2,3.80342]
[1724364357699,2.4853,2629.4,2629.1,3.80358]
[1724364359088,2.4853,2629.4,2629.0,3.80365]
[1724364359575,2.4853,2629.4,2629.0,3.80364]
[1724364359773,0.628832,2629.3,2629.0,7.6073]
[1724364359977,2.4853,2629.4,2629.0,7.6073]
[1724364361762,2.4853,2629.4,2629.1,3.80357]
[1724364363709,2.4853,2629.4,2629.0,3.80364]
[1724364365158,3.80331,2629.3,2628.8,4.94393]
[1724364365336,6.26581,2629.3,2628.9,3.80386]
[1724364366211,0.06364539,2629.2,2628.9,3.80386]
[1724364366415,0.06364539,2629.2,2628.5,8.15337052]
[1724364366416,2.3019,2629.1,2628.7,3.8041]
[1724364366613,2.3019,2629.1,2628.6,3.80423]
[1724364366614,6.10555,2629.1,2628.6,3.80423]
[1724364366853,0.06364539,2629.0,2628.6,7.60844]
[1724364367150,0.06364539,2629.0,2628.7,3.80414]
[1724364369643,2.3277,2628.9,2628.7,3.80414]
[1724364370287,0.06353466,2628.8,2628.7,3.80414]
[1724364375091,0.06353466,2628.8,2628.4,4.94448]
[1724364375401,0.06353466,2628.8,2628.6,3.8043]
[1724364375741,0.06353466,2628.8,2628.4,6.25426505]
[1724364375742,2.3858,2628.7,2628.4,3.80445]
[1724364375942,2.3858,2628.7,2628.5,3.80444]
[1724364376392,2.3858,2628.7,2628.6,3.8043]
[1724364378894,2.44915472,2628.7,2628.6,3.8043]
[1724364381314,2.44915472,2628.7,2628.5,3.80444]
[1724364381456,2.3858,2628.7,2628.5,3.80444]
[1724364381808,0.06323014,2628.6,2628.4,3.80458]
[1724364381952,0.06323014,2628.6,2628.4,3.80452]
[1724364382149,0.06323014,2628.6,2628.5,3.80445]
[1724364388299,0.06323014,2628.6,2628.2,4.94477]
[1724364388484,2.4722,2628.5,2628.2,3.80477]
[1724364388686,0.06313323,2628.4,2628.2,3.80477]
[1724364388922,2.4722,2628.5,2628.2,3.80477]
[1724364389128,2.4722,2628.5,2628.2,7.60957]
[1724364389129,0.06313323,2628.3,2628.2,7.60957]
[1724364389324,2.4722,2628.5,2628.3,3.80473]
[1724364390724,2.4722,2628.5,2628.2,3.80477]
[1724364391144,2.4722,2628.5,2628.0,3.80506]
[1724364391284,2.4722,2628.4,2628.0,7.61014]
[1724364391483,2.4722,2628.4,2627.9,7.36]
[1724364391484,3.80482,2628.3,2627.9,7.36]
[1724364391789,2.4722,2628.2,2627.9,7.36]
[1724364392024,2.4722,2628.2,2627.8,3.80535]
[1724364393088,2.4722,2628.2,2627.8,7.61072]
[1724364393786,2.4722,2628.2,2627.8,3.80535]
[1724364394189,2.391,2628.1,2627.7,3.8056]
[1724364395244,0.06235785,2628.0,2627.7,3.8056]
[1724364396631,2.3526,2627.9,2627.7,3.8056]
[1724364397021,2.3526,2627.9,2627.5,3.80588]
[1724364397221,0.06235785,2627.8,2627.5,3.80582]
[1724364397606,0.06235785,2627.8,2627.5,7.61164]
[1724364398229,0.06235785,2627.8,2627.5,7.61165]
[1724364398534,0.06235785,2627.8,2627.6,3.80573]
[1724364400198,0.06235785,2627.8,2627.5,3.80582]
[1724364405561,0.06235785,2627.8,2627.5,7.61158]
[1724364405727,0.06235785,2627.8,2627.5,3.80576]
[1724364407446,0.06235785,2627.8,2627.4,3.80603]
[1724364407447,2.4176,2627.7,2627.4,3.80603]
[1724364407968,0.06202545,2627.6,2627.4,3.80603]
[1724364409400,2.3945,2627.5,2627.4,3.80603]
[1724364409570,2.45643541,2627.5,2627.4,3.80603]
[1724364412966,2.45643541,2627.5,2627.3,3.80617]
[1724364413167,2.45643541,2627.5,2627.2,3.80632]
[1724364415417,0.06193541,2627.5,2627.4,3.80604]
[1724364415702,2.3853,2627.7,2627.5,3.80581]
[1724364417409,6.19048,2628.0,2627.5,3.80589]
[1724364417705,3.80518,2628.0,2627.5,3.80589]
[1724364417901,2.3853,2627.9,2627.5,3.80589]
[1724364418461,3.80532,2627.9,2627.5,3.80589]
[1724364418662,2.3853,2627.8,2627.5,3.80589]
[1724364423198,2.3853,2627.8,2627.3,3.80609]
[1724364423199,3.80549,2627.8,2627.3,3.80609]
[1724364423510,2.3532,2627.7,2627.3,3.80609]
[1724364424816,2.3166,2627.8,2627.4,3.80604]
[1724364424969,2.3166,2627.8,2627.5,0.761213]
[1724364425164,2.3166,2627.8,2627.4,3.80604]
[1724364426312,0.06165139,2627.7,2627.4,3.80604]
[1724364426675,2.3166,2627.8,2627.4,3.80604]
[1724364426872,0.06165139,2627.6,2627.4,3.80604]
[1724364427114,2.3166,2627.8,2627.4,3.80604]
[1724364427322,0.06165139,2627.5,2627.4,3.80604]
[1724364427488,2.3166,2627.8,2627.4,4.913703]
[1724364427685,0.06165139,2627.5,2627.4,4.913703]
[1724364427952,2.3166,2627.8,2627.4,4.913703]
[1724364428113,0.06165139,2627.5,2627.4,4.913703]
[1724364428471,2.3166,2627.8,2627.4,1.107663]
[1724364428671,2.3166,2627.8,2627.5,3.80588]
[1724364429182,2.3166,2627.8,2627.4,4.913693]
[1724364429377,2.3609,2627.8,2627.3,3.80609]
[1724364430632,2.2796,2627.6,2627.3,3.80609]
[1724364431476,6.08537,2627.6,2627.1,3.80639]
[1724364431690,6.08537,2627.6,2627.1,7.61278]
[1724364431931,6.08537,2627.6,2627.2,3.80629]
[1724364433045,2.2796,2627.6,2627.2,7.61258]
[1724364433628,2.2796,2627.6,2627.2,3.80629]
[1724364434629,2.2796,2627.6,2627.0,4.94652]
[1724364434630,2.3665,2627.5,2627.0,3.80652]
[1724364434838,2.3665,2627.5,2627.1,3.80639]
[1724364434839,2.59446,2627.5,2627.1,3.80639]
[1724364435338,2.3665,2627.5,2627.1,3.80639]
[1724364437014,2.3665,2627.5,2627.0,3.80652]
[1724364437015,2.3665,2627.4,2627.0,7.61305]
[1724364437218,2.3665,2627.4,2627.0,3.80652]
[1724364437619,2.3665,2627.4,2627.0,7.61303]
[1724364438740,2.3665,2627.4,2627.0,3.80651]
[1724364439458,2.4385,2627.2,2626.5,8.15337052]
[1724364439616,2.4385,2627.2,2627.0,3.80651]
[1724364439810,2.4385,2627.2,2627.0,3.80652]
[1724364441109,0.0612842,2627.1,2627.0,3.80652]
[1724364442052,0.0612842,2627.1,2627.0,8.488472]
[1724364442657,2.3576,2627.4,2627.0,8.488472]
[1724364442829,0.0612842,2627.1,2627.0,8.488472]
[1724364443032,2.3576,2627.4,2627.0,4.681852]
[1724364443250,0.0612842,2627.1,2627.0,4.681852]
[1724364443554,2.3576,2627.4,2627.1,3.80646]
[1724364444212,2.3576,2627.4,2626.7,1.14]
[1724364444213,2.4634,2627.3,2626.7,3.80695]
[1724364444441,1.14,2627.7,2626.7,4.94695]
[1724364444442,2.4634,2627.1,2626.7,4.94695]
[1724364444758,2.4634,2627.1,2626.6,1.98585143]
[1724364444759,2.4634,2627.1,2626.6,3.80712]
[1724364444956,2.4634,2627.1,2626.7,1.14]
[1724364445112,2.4634,2627.1,2626.7,4.94704]
[1724364445852,2.4634,2627.1,2626.7,3.996427]
[1724364446039,2.4634,2627.3,2626.9,4.94669]
[1724364446761,2.4634,2627.3,2627.1,3.80646]
[1724364446979,2.4634,2627.3,2627.1,3.8064]
[1724364447281,2.4634,2627.3,2627.2,4.18697]
[1724364447986,2.4634,2627.3,2627.2,0.38064]
[1724364448274,2.4634,2627.3,2627.1,3.80645]
[1724364449068,2.4634,2627.3,2627.0,3.8066]
[1724364452337,2.4634,2627.3,2626.7,6.663467]
[1724364452338,3.80641,2627.2,2626.7,6.663467]
[1724364452536,3.80641,2627.2,2626.7,7.803467]
[1724364453531,2.4943,2627.1,2626.7,7.803467]
[1724364453739,2.4943,2627.1,2626.8,1.1610657]
[1724364453957,0.06086842,2627.0,2626.8,1.1610657]
[1724364454454,0.06086842,2627.0,2626.6,3.80719]
[1724364454785,0.06086842,2627.0,2626.6,4.94712]
[1724364455387,0.06086842,2627.0,2626.6,8.75425]
[1724364455540,2.4943,2626.9,2626.6,8.75425]
[1724364455973,0.06084763,2626.8,2626.6,8.75425]
[1724364456169,2.4943,2626.9,2626.6,4.94712]
[1724364456446,2.4943,2626.9,2626.6,1.14]
[1724364456659,2.4943,2626.9,2626.5,3.80733]
[1724364456660,0.06084763,2626.8,2626.5,3.80733]
[1724364457271,2.4943,2626.7,2626.5,3.80733]
[1724364458205,2.4943,2626.7,2626.5,7.6146]
[1724364458408,2.4943,2626.7,2626.6,3.8072]
[1724364465508,2.4943,2626.7,2626.4,1.14]
[1724364465509,2.2759,2627.2,2626.4,1.14]
[1724364465847,0.0606813,2627.1,2627.0,3.80649]
[1724364467516,2.3907813,2627.1,2627.0,3.80649]
[1724364467701,2.3907813,2627.1,2626.9,3.80676]
[1724364467903,2.3907813,2627.1,2626.8,3.80683]
[1724364468533,2.3907813,2627.1,2626.8,7.61366]
[1724364468850,2.3907813,2627.1,2626.8,3.80683]
[1724364472556,2.2739,2627.0,2626.6,3.80708]
[1724364472756,2.2739,2627.0,2626.4,3.80738]
[1724364472757,6.08062,2627.0,2626.4,3.80738]
[1724364473290,3.80706,2626.7,2626.2,7.36]
[1724364473408,3.80706,2626.7,2626.0,0.79337052]
[1724364473409,2.2739,2626.5,2626.0,3.80794]
[1724364473611,2.2739,2626.5,2626.1,3.80788]
[1724364473860,0.06058426,2626.4,2626.1,3.80788]
[1724364475460,2.315,2626.3,2626.1,3.80788]
[1724364475823,0.06058426,2626.2,2626.1,3.80788]
[1724364476031,2.315,2626.3,2626.1,3.80788]
[1724364476236,0.059877,2626.2,2626.1,3.80788]
[1724364476562,2.315,2626.3,2626.1,3.80788]
[1724364476861,0.059877,2626.2,2626.1,3.80788]
[1724364477080,2.315,2626.3,2626.1,3.80788]
[1724364477281,0.059877,2626.2,2626.1,3.80788]
[1724364477580,2.315,2626.3,2626.1,3.80788]
[1724364477774,0.059877,2626.2,2626.1,3.80788]
[1724364478632,2.315,2626.3,2626.1,3.80788]
[1724364478971,0.059877,2626.2,2626.1,3.80788]
[1724364479378,2.315,2626.3,2626.1,3.80788]
[1724364479669,0.059877,2626.2,2626.1,3.80788]
[1724364479868,2.315,2626.3,2626.1,3.80788]
[1724364480081,0.05916971,2626.2,2626.1,3.80788]
[1724364480225,2.315,2626.3,2626.1,3.80788]
[1724364480427,0.05916971,2626.2,2626.1,3.80788]
[1724364480627,2.315,2626.3,2626.0,7.61592]
[1724364480858,0.05916971,2626.2,2626.0,7.61592]
[1724364481061,2.315,2626.3,2626.1,3.8079]
[1724364481274,0.05916971,2626.2,2626.0,3.80794]
[1724364481458,2.315,2626.3,2626.1,3.80792]
[1724364481645,0.05916971,2626.2,2626.1,3.80792]
[1724364481846,2.315,2626.3,2626.1,3.80792]
[1724364482048,0.05916971,2626.2,2626.1,3.80792]
[1724364482262,2.315,2626.3,2626.1,3.80792]
[1724364482448,0.05916971,2626.2,2626.1,3.80792]
[1724364482975,2.315,2626.3,2626.1,3.80792]
[1724364483283,0.05918359,2626.2,2626.1,3.80792]
[1724364483445,2.315,2626.3,2626.1,3.80792]
[1724364483648,0.05919052,2626.2,2626.1,3.80792]
[1724364483828,2.315,2626.3,2626.1,3.80792]
[1724364484374,0.05919052,2626.2,2626.1,3.80792]
[1724364484679,2.315,2626.3,2626.1,3.80792]
[1724364484983,0.05919052,2626.2,2626.1,3.80792]
[1724364485286,2.315,2626.3,2626.1,3.80792]
[1724364485463,0.05919052,2626.2,2626.1,3.80792]
[1724364485779,2.315,2626.3,2626.1,4.657068]
[1724364485966,0.05919052,2626.2,2626.1,4.657068]
[1724364486661,2.315,2626.3,2626.1,4.657068]
[1724364487046,0.05919052,2626.2,2626.1,4.657068]
[1724364487245,2.315,2626.3,2626.1,4.657068]
[1724364487441,2.315,2626.3,2626.1,3.80792]
[1724364487645,0.05919052,2626.2,2626.1,3.80792]
[1724364487872,0.05919052,2626.2,2626.0,3.80806]
[1724364488068,0.05921827,2626.1,2626.0,3.80806]
[1724364488371,0.05921827,2626.1,2625.8,4.94825]
[1724364488372,0.05921827,2626.1,2625.8,8.75648]
[1724364488574,2.313,2626.3,2625.8,7.61648]
[1724364488876,0.0592668,2626.0,2625.9,3.80821]
[1724364489073,2.313,2626.2,2625.9,3.80821]
[1724364489579,0.05921825,2626.1,2625.9,3.80821]
[1724364490377,0.05921825,2626.1,2625.8,3.80823]
[1724364490681,2.4427,2626.0,2625.8,3.80823]
[1724364490836,0.05919744,2625.9,2625.8,3.80823]
[1724364503319,0.05919744,2625.9,2625.7,3.80842]
[1724364504329,0.05919744,2625.9,2625.8,3.80836]
[1724364513928,0.05919744,2625.9,2625.7,3.8085]
[1724364514077,2.4192,2625.8,2625.5,3.80872]
[1724364514276,0.05883671,2625.7,2625.6,3.80865]
[1724364514523,2.4192,2625.8,2625.6,3.80865]
[1724364514723,0.05882284,2625.7,2625.6,3.80865]
[1724364515042,2.4192,2625.8,2625.6,3.80865]
[1724364515211,0.05882284,2625.7,2625.6,3.80865]
[1724364515609,2.4192,2625.8,2625.6,3.80865]
[1724364515819,0.05882284,2625.7,2625.6,3.80865]
[1724364516130,2.4192,2625.8,2625.6,3.80865]
[1724364516444,2.4466,2626.0,2625.7,3.8085]
[1724364517955,2.4466,2626.0,2625.6,3.80865]
[1724364519000,6.25467,2626.0,2625.6,3.80865]
[1724364519341,1.006259,2625.9,2625.6,3.80865]
[1724364520013,2.2686,2625.8,2625.6,3.80865]
[1724364522752,2.3161,2625.9,2625.6,3.80865]
[1724364522960,2.3161,2626.4,2625.8,1.14]
[1724364523166,2.3161,2626.6,2626.4,3.80737]
[1724364523451,2.3161,2626.9,2626.5,4.94725]
[1724364523651,2.3161,2626.9,2626.7,1.14]
[1724364523854,2.3161,2626.9,2626.6,3.80712]
[1724364524211,2.3161,2626.9,2626.5,8.75448]
[1724364524430,2.3161,2626.9,2626.5,4.94723]
[1724364524635,2.3161,2626.9,2626.5,8.75449]
[1724364525045,2.3161,2626.9,2626.5,4.94723]
[1724364525246,2.4962,2627.2,2626.7,4.94705]
[1724364525453,2.4962,2627.2,2627.0,3.8066]
[1724364525790,2.4962,2627.4,2626.9,4.94674]
[1724364526552,2.4962,2627.4,2626.9,4.94668]
[1724364526733,2.4962,2627.6,2627.2,3.80629]
[1724364527166,6.30137,2628.0,2627.5,4.94576]
[1724364527452,10.10663,2628.0,2627.5,3.80576]
[1724364527655,4.815983,2627.9,2627.3,8.75214]
[1724364528759,4.815983,2627.9,2627.3,8.75215]
[1724364529051,4.815983,2627.9,2627.4,3.80604]
[1724364529580,2.4962,2628.0,2627.3,4.94605]
[1724364529581,2.4962,2628.0,2627.6,3.80574]
[1724364529712,2.4962,2628.0,2627.5,1.14]
[1724364529713,6.30139,2628.0,2627.5,1.14]
[1724364529907,6.30139,2628.0,2627.5,4.94588]
[1724364530352,7.312027,2628.0,2627.5,4.94588]
[1724364530557,11.117297,2628.0,2627.5,4.94588]
[1724364530766,7.312027,2628.0,2627.5,4.94588]
[1724364531213,0.05784305,2627.9,2627.5,4.94588]
[1724364531715,2.2592,2627.6,2627.1,4.94638]
[1724364532138,0.05784305,2627.5,2627.4,3.80601]
[1724364532458,2.2592,2627.9,2627.5,3.80582]
[1724364532661,2.2592,2627.9,2627.6,3.80574]
[1724364533022,3.80251,2629.9,2627.6,3.80574]
[1724364533023,2.2592,2628.3,2627.7,1.14]
[1724364533223,6.06402,2628.3,2627.8,0.494574]
[1724364533458,6.06402,2628.3,2627.7,4.94556]
[1724364533772,2.2592,2628.3,2627.8,3.80545]
[1724364534063,9.06404,2628.3,2627.8,3.80545]
[1724364534639,3.80491,2628.2,2627.7,1.14]
[1724364535934,3.80491,2628.2,2627.6,3.80562]
[1724364536143,2.2592,2628.1,2627.6,3.80562]
[1724364536675,3.80532,2627.9,2627.4,3.80596]
[1724364537366,2.2829,2627.8,2627.4,3.80596]
[1724364537573,2.2829,2627.8,2627.3,1.14]
[1724364537778,2.891722,2627.8,2627.2,3.80621]
[1724364537980,3.80569,2627.7,2627.2,3.80621]
[1724364538281,0.05925904,2627.6,2627.2,7.61246]
[1724364538642,3.80569,2627.7,2627.2,7.61246]
[1724364539176,0.05925904,2627.6,2627.2,7.61246]
[1724364539471,3.80569,2627.7,2627.2,7.61246]
[1724364539835,0.05925904,2627.6,2627.2,7.61246]
[1724364540229,2.891722,2627.8,2627.3,3.80616]
[1724364540570,0.05925904,2627.7,2627.3,3.80616]
[1724364540722,6.697222,2627.8,2627.3,3.80616]
[1724364540922,0.05925904,2627.7,2627.3,3.80616]
[1724364541123,6.697222,2627.8,2627.3,3.80616]
[1724364541354,0.05925904,2627.7,2627.3,3.80616]
[1724364541574,6.697222,2627.8,2627.3,3.80616]
[1724364541772,0.05925904,2627.7,2627.3,3.80616]
[1724364541982,6.697222,2627.8,2627.3,3.80616]
[1724364542266,0.05925904,2627.6,2627.3,3.80616]
[1724364542467,6.697222,2627.8,2627.3,3.80616]
[1724364542668,0.05925904,2627.5,2627.3,3.80616]
[1724364542969,2.2829,2627.8,2627.7,3.8056]
[1724364543176,5.466,2628.1,2627.7,3.8056]
[1724364543325,5.466,2628.1,2627.7,3.80551]
[1724364543531,2.466,2628.1,2627.7,3.80551]
[1724364544073,2.466,2628.1,2627.8,1.14]
[1724364544272,5.466,2628.3,2628.0,3.80515]
[1724364544659,2.466,2628.3,2628.0,3.80515]
[1724364544978,2.466,2628.3,2628.0,4.94515]
[1724364545283,2.2803,2628.6,2628.2,4.94478]
[1724364545845,2.2803,2628.6,2628.2,1.14]
[1724364546049,6.08461,2628.6,2628.1,3.80502]
[1724364546244,3.80475,2628.3,2627.8,3.80544]
[1724364546831,0.05911337,2628.2,2627.8,3.80544]
[1724364547237,3.80475,2628.3,2627.8,3.80544]
[1724364547439,0.05944629,2628.1,2627.8,3.80544]
[1724364547633,2.4503,2628.3,2627.6,3.80566]
[1724364547866,0.05944629,2628.0,2627.6,3.80566]
[1724364548034,3.8051,2628.1,2627.6,3.80566]
[1724364548234,0.05944629,2627.9,2627.6,3.80566]
[1724364548475,0.05942548,2628.0,2627.5,3.80579]
[1724364548679,3.8051,2628.1,2627.5,3.80579]
[1724364548680,2.4767,2627.9,2627.5,3.80579]
[1724364549080,0.05936307,2627.8,2627.5,3.80579]
[1724364550015,0.05936307,2627.8,2627.4,11.166]
[1724364550225,0.31296938,2627.8,2627.4,7.36]
[1724364550508,3.80562,2627.7,2627.4,7.36]
[1724364550710,0.05923129,2627.6,2627.2,3.80625]
[1724364551225,0.05923129,2627.6,2627.2,3.80624]
[1724364551378,0.05923129,2627.6,2627.2,3.80623]
[1724364551578,0.25360631,2627.8,2627.2,3.80623]
[1724364551779,0.05923129,2627.7,2627.2,3.80623]
[1724364552174,0.05923129,2627.7,2627.4,3.80594]
[1724364552378,6.28203,2627.9,2627.6,3.80575]
[1724364552379,2.4767,2627.9,2627.6,3.80575]
[1724364552595,0.05923129,2627.8,2627.6,3.80575]
[1724364553596,6.05923,2628.1,2627.6,3.80575]
[1724364553828,0.05923129,2628.0,2627.6,3.80575]
[1724364554435,2.2502,2627.9,2627.5,3.80586]
[1724364554622,6.05553,2627.9,2627.5,3.80586]
[1724364555141,0.05923129,2627.8,2627.5,3.80586]
[1724364557238,0.05923129,2627.8,2627.4,3.80599]
[1724364560086,0.05923129,2627.8,2627.5,3.80589]
[1724364563206,0.05923129,2627.8,2627.4,3.80601]
[1724364564456,6.21068,2627.7,2627.1,3.80637]
[1724364564650,6.21068,2627.7,2627.2,2.4927]
[1724364564913,0.05931453,2627.6,2627.2,2.4927]
[1724364565703,0.05931453,2627.6,2627.3,3.80618]
[1724364572321,2.4824,2627.5,2627.2,4.94632]
[1724364572525,0.05923129,2627.4,2627.1,3.80637]
[1724364572838,0.05923129,2627.4,2627.2,4.94625]
[1724364575325,0.05923129,2627.4,2627.3,3.80618]
[1724364576927,0.05923129,2627.4,2627.3,7.61236]
[1724364577127,0.05923129,2627.4,2627.3,8.487615]
[1724364577476,2.3353,2627.8,2627.4,3.80601]
[1724364577614,2.3353,2627.8,2627.4,4.94601]
[1724364582952,2.3353,2627.8,2627.5,3.80588]
[1724364583105,2.3353,2627.8,2627.6,1.14]
[1724364583311,2.4622,2628.1,2627.6,1.14]
[1724364583510,2.4622,2628.1,2627.8,1.14]
[1724364586304,2.4622,2628.1,2627.8,4.94545]
[1724364586613,2.4622,2628.1,2627.8,1.14]
[1724364588381,2.4622,2628.1,2627.7,3.8056]
[1724364588871,6.26723,2628.1,2627.7,3.8056]
[1724364589476,3.80532,2627.9,2627.5,3.80579]
[1724364589618,3.80532,2627.9,2627.5,4.94579]
[1724364589817,2.3208,2628.0,2627.5,8.75158]
[1724364590158,2.3208,2628.0,2627.5,8.7516]
[1724364590364,2.3208,2628.0,2627.5,4.94579]
[1724364590668,6.12597,2628.0,2627.5,4.94579]
[1724364590873,6.12597,2628.0,2627.5,3.80579]
[1724364591034,7.11907,2628.0,2627.6,1.14]
[1724364591232,0.05946018,2627.9,2627.6,1.14]
[1724364595055,0.05946018,2627.9,2627.6,4.94575]
[1724364596371,0.05946018,2627.9,2627.6,1.14]
[1724364596670,0.05946018,2627.9,2627.5,3.80579]
[1724364597239,2.3179,2627.8,2627.5,3.80579]
[1724364597437,2.37733937,2627.8,2627.5,3.80579]
[1724364598644,2.37733937,2627.8,2627.4,12.30594]
[1724364598827,3.86490937,2627.8,2627.4,7.36]
[1724364599027,2.76624524,2627.7,2627.4,7.36]
[1724364599268,2.8256222,2627.7,2627.4,7.36]
[1724364599769,2.8256222,2627.7,2627.4,11.16602]
[1724364599955,2.8256222,2627.7,2627.4,3.80602]
[1724364600478,2.8256222,2627.7,2627.4,4.94602]
[1724364603695,2.37727696,2627.7,2627.4,4.94602]
[1724364604358,2.37727696,2627.7,2627.5,3.8058]
[1724364605673,2.37727696,2627.7,2627.6,3.80575]
[1724364605987,2.37727696,2627.7,2627.5,3.8058]
[1724364606691,2.37727696,2627.7,2627.5,7.61163]
[1724364606898,2.37727696,2627.7,2627.5,3.8058]
[1724364607886,2.37727696,2627.7,2627.6,3.80575]
[1724364609076,2.37727696,2627.7,2627.5,7.61161]
[1724364609211,2.37727696,2627.7,2627.5,7.61162]
[1724364609563,2.37727696,2627.7,2627.5,3.8058]
[1724364610019,2.37727696,2627.7,2627.6,3.80575]
[1724364610020,0.05937696,2627.7,2627.6,3.80575]
[1724364610374,2.3046,2627.9,2627.7,3.80559]
[1724364610664,2.3046,2627.9,2627.5,7.61155]
[1724364610959,3.215563,2627.9,2627.5,7.61155]
[1724364611158,2.3046,2627.8,2627.3,3.80608]
[1724364611365,2.3418,2627.7,2627.3,3.80608]
[1724364611508,3.80562,2627.7,2627.2,3.80633]
[1724364611714,2.3418,2627.5,2627.2,3.80633]
[1724364613167,2.3418,2627.5,2627.1,8.75279]
[1724364613467,2.3418,2627.5,2627.2,7.1155261]
[1724364613766,2.3418,2627.5,2627.2,3.80631]
[1724364613912,2.3418,2627.5,2627.3,1.14]
[1724364615366,2.3418,2627.5,2627.3,4.94617]
[1724364616500,2.3418,2627.5,2627.3,1.14]
[1724364616961,6.762479,2627.5,2627.0,0.79337052]
[1724364617166,2.2703,2627.4,2627.2,1.14]
[1724364621267,0.05916191,2627.3,2627.2,1.14]
[1724364622715,2.55146191,2627.3,2627.2,1.14]
[1724364622919,3.40935049,2627.3,2627.0,1.14]
[1724364624873,2.4923,2627.2,2627.0,1.14]
[1724364625252,0.05916191,2627.1,2626.9,7.36]
[1724364625580,2.2628,2627.0,2626.7,1.14]
[1724364625916,0.05893991,2626.9,2626.7,1.14]
[1724364626155,2.2628,2627.0,2626.7,1.14]
[1724364626470,2.2628,2627.2,2626.9,1.14]
[1724364626778,2.2628,2627.2,2626.6,4.33049636]
[1724364626779,2.2628,2627.2,2627.1,4.94647]
[1724364627072,2.2628,2627.5,2627.1,4.94647]
[1724364627225,2.2628,2627.5,2627.4,1.14]
[1724364627573,3.169656,2627.5,2627.4,1.14]
[1724364627754,2.2628,2627.7,2627.4,1.14]
[1724364627988,2.2505,2628.0,2627.6,4.94574]
[1724364628310,2.2505,2628.0,2627.8,1.14]
[1724364629205,3.80463,2628.4,2627.8,4.94533]
[1724364629364,0.760917,2628.3,2628.0,1.14]
[1724364629559,4.565657,2628.3,2627.7,3.80557]
[1724364629778,4.565657,2628.3,2627.8,1.14]
[1724364631395,3.80493,2628.2,2627.8,1.14]
[1724364631611,6.26343,2628.2,2627.8,1.14]
[1724364631764,0.71172058,2628.1,2627.8,1.14]
[1724364633605,6.26343,2628.2,2627.8,1.14]
[1724364634494,3.80511,2628.1,2627.8,1.14]
[1724364634696,7.61023,2628.1,2627.8,1.14]
[1724364634862,3.80511,2628.1,2627.8,1.14]
[1724364636405,0.05889827,2628.0,2627.8,1.14]
[1724364638802,0.6911491,2628.0,2627.8,1.14]
[1724364638981,2.4829,2627.9,2627.6,1.14]
[1724364639563,0.05889827,2627.8,2627.6,1.14]
[1724364642489,0.05889827,2627.8,2627.6,4.94574]
[1724364644113,2.3151,2627.7,2627.4,1.14]
[1724364644417,0.05923824,2627.6,2627.4,1.14]
[1724364644827,2.3151,2627.7,2627.4,1.14]
[1724364645120,0.05922436,2627.5,2627.4,4.94603]
[1724364645292,2.3151,2627.7,2627.4,4.94603]
[1724364645474,0.05922436,2627.5,2627.4,4.94603]
[1724364645804,2.3151,2627.7,2627.5,3.80589]
[1724364646119,2.3151,2627.7,2627.6,1.14]
[1724364646474,2.37432436,2627.7,2627.6,1.14]
[1724364654072,0.05922436,2627.7,2627.6,1.14]
[1724364654240,2.4639,2627.9,2627.6,1.14]
[1724364654441,0.05922436,2627.7,2627.6,1.14]
[1724364654743,3.390814,2627.9,2627.6,1.14]
[1724364654944,0.05914803,2627.7,2627.6,1.14]
[1724364655175,3.390814,2627.9,2627.6,1.14]
[1724364655382,0.05914803,2627.7,2627.6,1.14]
[1724364655889,2.4639,2627.9,2627.6,1.14]
[1724364656041,0.05914803,2627.7,2627.5,3.80589]
[1724364656243,3.390814,2627.9,2627.5,3.80589]
[1724364656443,0.05914803,2627.6,2627.5,3.80589]
[1724364656688,3.390814,2627.9,2627.5,3.80589]
[1724364656689,2.4639,2627.9,2627.5,3.80589]
[1724364656897,0.05914803,2627.6,2627.5,7.61178]
[1724364657058,3.0,2628.1,2627.6,3.80562]
[1724364657059,5.2739,2628.1,2627.6,3.80562]
[1724364657383,5.2739,2628.1,2627.7,4.94559]
[1724364657751,5.2739,2628.1,2627.6,3.80573]
[1724364657752,6.181788,2628.1,2627.6,3.80573]
[1724364658143,9.986818,2628.1,2627.6,3.80573]
[1724364658455,2.2739,2628.0,2627.5,7.61168]
[1724364659441,2.2739,2628.0,2627.6,3.80574]
[1724364659642,2.2927,2627.8,2627.4,3.80603]
[1724364659845,2.2927,2627.8,2627.4,4.94603]
[1724364660498,0.56474958,2628.0,2626.9,1.19005578]
[1724364660499,3.80583,2627.6,2626.9,1.19005578]
[1724364660779,2.3721,2627.5,2627.1,4.94638]
[1724364662634,2.3721,2627.5,2627.1,1.14]